bitfinex-derivatives/quotes_SOLF0:USTF0_20250623
["timestamp","ask_amount","ask_price","bid_price","bid_amount"]
[1750719623397,54.6991,144.89,144.8,54.8682]
[1750719623593,9.73463173,144.88,144.8,54.8682]
[1750719624205,6.8982,144.86,144.81,6.8999]
[1750719624704,6.8985,144.85,144.8,54.8682]
[1750719625205,6.9003,144.82,144.75,212.68]
[1750719625411,54.6991,144.89,144.75,51.56]
[1750719625412,9.73463173,144.83,144.75,51.56]
[1750719625594,9.73463173,144.81,144.73,4.5215]
[1750719625797,9.73463173,144.79,144.73,2.2694]
[1750719625990,5.81454562,144.78,144.73,2.2694]
[1750719626200,9.73463173,144.79,144.73,2.2694]
[1750719626504,5.81512764,144.78,144.73,2.2694]
[1750719626709,5.81659419,144.77,144.73,2.2694]
[1750719626897,6.9031,144.76,144.73,2.2694]
[1750719627095,9.73463173,144.77,144.71,161.04]
[1750719627294,6.9043,144.73,144.7,53.9282]
[1750719627498,9.73463173,144.77,144.7,51.56]
[1750719627698,5.82010828,144.76,144.7,51.56]
[1750719627906,51.56,144.79,144.66,56.3004]
[1750719627907,15.55474001,144.75,144.66,56.3004]
[1750719628100,15.55474001,144.74,144.66,217.0004]
[1750719628297,5.82010828,144.73,144.71,6.9048]
[1750719628502,5.82010828,144.72,144.66,217.0004]
[1750719628700,6.9037,144.75,144.66,217.0004]
[1750719628701,6.9037,144.75,144.67,9.73463173]
[1750719628895,5.83600931,144.74,144.67,9.73463173]
[1750719629102,6.9037,144.75,144.67,9.73463173]
[1750719629406,5.83846826,144.74,144.71,6.9052]
[1750719629593,6.9037,144.75,144.71,6.9052]
[1750719629798,5.84183425,144.74,144.71,6.9052]
[1750719630100,6.9037,144.75,144.71,6.9052]
[1750719630101,5.86766391,144.73,144.71,6.9052]
[1750719630303,5.86766391,144.72,144.71,6.9052]
[1750719631507,51.56,144.79,144.75,6.903]
[1750719631710,51.56,144.79,144.71,51.56]
[1750719631897,58.4616,144.79,144.71,51.56]
[1750719632100,51.56,144.79,144.71,51.56]
[1750719633606,61.29463173,144.79,144.71,51.56]
[1750719634211,6.9031,144.76,144.72,6.9044]
[1750719634615,61.29463173,144.79,144.71,51.56]
[1750719634814,6.9024,144.77,144.73,6.9039]
[1750719635399,5.1636453,144.76,144.72,6.9045]
[1750719635608,6.9028,144.76,144.72,6.9045]
[1750719636714,61.29463173,144.79,144.72,6.9045]
[1750719637020,61.29463173,144.79,144.71,51.56]
[1750719637216,4.95382215,144.78,144.71,51.56]
[1750719637420,9.73463173,144.75,144.66,4.7404]
[1750719637810,9.73463173,144.73,144.66,2.3113]
[1750719638111,9.73463173,144.73,144.64,210.78]
[1750719638313,4.94743182,144.72,144.64,51.58]
[1750719638514,61.31463173,144.74,144.64,51.58]
[1750719638814,4.94829659,144.73,144.64,51.58]
[1750719639005,14.68292832,144.72,144.64,51.58]
[1750719639207,9.73463173,144.72,144.64,51.58]
[1750719639604,9.73463173,144.7,144.63,2.2653]
[1750719639912,6.9067,144.68,144.64,6.9084]
[1750719640210,9.73463173,144.71,144.63,2.2653]
[1750719640614,6.9067,144.68,144.64,6.9082]
[1750719641007,2.2596,144.75,144.65,9.74613072]
[1750719641211,2.2596,144.75,144.66,162.2835]
[1750719641612,51.58,144.77,144.67,12.09573072]
[1750719641810,4.94645177,144.76,144.67,12.09573072]
[1750719642109,51.58,144.77,144.71,6.9051]
[1750719642110,6.9036,144.75,144.71,6.9051]
[1750719642313,51.58,144.77,144.67,12.09573072]
[1750719642713,6.9041,144.74,144.7,6.9054]
[1750719643314,61.32525795,144.77,144.66,159.9]
[1750719643912,61.32525795,144.77,144.7,6.9053]
[1750719643913,6.9041,144.74,144.7,6.9053]
[1750719644114,9.74525795,144.75,144.65,2.3917]
[1750719644308,9.74525795,144.73,144.65,2.3917]
[1750719644513,9.74525795,144.75,144.65,2.3917]
[1750719645419,6.9065,144.69,144.65,9.2994]
[1750719645721,9.74525795,144.75,144.65,9.2994]
[1750719645922,4.92739467,144.76,144.65,2.3917]
[1750719646111,9.74525795,144.76,144.66,9.74525795]
[1750719647016,6.9036,144.75,144.71,6.9052]
[1750719647410,51.58,144.77,144.66,9.74525795]
[1750719647611,51.58,144.77,144.68,9.74525795]
[1750719647816,51.58,144.77,144.7,9.74525795]
[1750719648118,2.3126,144.8,144.7,9.74525795]
[1750719648319,2.3126,144.8,144.71,2.4212]
[1750719649117,647.72,144.81,144.72,9.74525795]
[1750719649321,647.72,144.81,144.73,2.1925]
[1750719649719,2.4086,144.88,144.74,61.34525795]
[1750719649720,61.34525795,144.85,144.74,61.34525795]
[1750719649921,51.6,144.85,144.76,9.74525795]
[1750719650122,51.6,144.85,144.78,9.74525795]
[1750719650525,6.8981,144.86,144.78,9.74525795]
[1750719650728,6.8981,144.86,144.81,6.9001]
[1750719651029,6.8986,144.85,144.81,6.9001]
[1750719651529,6.8991,144.84,144.8,6.9007]
[1750719651823,6.8991,144.84,144.78,9.74525795]
[1750719651824,9.74525795,144.85,144.78,6.9018]
[1750719652132,9.74525795,144.85,144.75,9.74525795]
[1750719652524,9.74525795,144.83,144.74,51.6]
[1750719652832,9.74525795,144.83,144.73,2.1925]
[1750719652833,9.74525795,144.81,144.73,2.1925]
[1750719653428,59.58525795,144.83,144.73,2.1925]
[1750719653629,6.9012,144.8,144.73,2.1925]
[1750719653930,59.58525795,144.83,144.73,2.1925]
[1750719654126,6.9009,144.8,144.76,6.9025]
[1750719654334,59.58525795,144.83,144.73,2.1925]
[1750719654729,6.9013,144.8,144.75,6.9031]
[1750719654934,49.84,144.83,144.74,9.74525795]
[1750719655621,6.9012,144.8,144.76,6.9024]
[1750719655828,6.9012,144.8,144.74,9.74525795]
[1750719656028,49.84,144.83,144.74,9.74525795]
[1750719656232,49.84,144.83,144.76,9.74525795]
[1750719656731,6.9002,144.82,144.77,6.9022]
[1750719657128,49.84,144.83,144.76,49.84]
[1750719657330,2.4086,144.88,144.77,9.74525795]
[1750719657518,49.84,144.87,144.77,9.74525795]
[1750719658532,59.58525795,144.87,144.77,9.74525795]
[1750719659040,59.58525795,144.87,144.76,56.7425]
[1750719659230,49.84,144.87,144.76,59.58525795]
[1750719659425,16.63825795,144.86,144.76,49.84]
[1750719659630,9.74525795,144.84,144.76,49.84]
[1750719659931,6.9018,144.78,144.76,49.84]
[1750719660229,59.56525795,144.82,144.73,2.1925]
[1750719660623,2.3833,144.81,144.73,2.1925]
[1750719660823,49.82,144.82,144.74,9.74525795]
[1750719661429,12.12855795,144.85,144.75,18.26728792]
[1750719661430,2.3833,144.85,144.75,18.26728792]
[1750719661626,2.3833,144.85,144.73,14.74282045]
[1750719661627,2.3833,144.85,144.77,9.73358855]
[1750719661925,2.3833,144.85,144.77,68.08728792]
[1750719662120,6.8993,144.84,144.77,68.08728792]
[1750719662324,59.55358855,144.88,144.77,68.08728792]
[1750719662532,59.55358855,144.88,144.79,9.73358855]
[1750719662533,49.82,144.88,144.79,9.73358855]
[1750719663033,49.82,144.88,144.79,20.48228792]
[1750719663335,49.82,144.88,144.8,8.53369937]
[1750719663631,49.82,144.88,144.81,9.73358855]
[1750719664042,6.8985,144.86,144.81,9.73358855]
[1750719664226,49.82,144.88,144.79,10.74869937]
[1750719664428,49.82,144.88,144.79,20.48228792]
[1750719664630,49.82,144.88,144.8,9.73358855]
[1750719665133,6.9001,144.82,144.79,2.215]
[1750719665332,9.72721207,144.87,144.77,58.35369937]
[1750719665536,9.73203667,144.87,144.77,49.82]
[1750719665734,9.73203667,144.87,144.77,58.35369937]
[1750719666032,49.82,144.88,144.77,49.82]
[1750719666241,9.73203667,144.87,144.77,49.82]
[1750719666628,6.899,144.84,144.79,6.9012]
[1750719666839,6.899,144.84,144.77,58.35369937]
[1750719667040,59.55203667,144.88,144.77,58.35369937]
[1750719667228,59.55203667,144.88,144.78,6.9015]
[1750719667434,59.55203667,144.88,144.77,49.82]
[1750719667634,9.73203667,144.86,144.77,49.82]
[1750719668232,9.73203667,144.87,144.77,49.82]
[1750719668437,6.8997,144.83,144.79,6.9012]
[1750719668843,49.82,144.88,144.77,68.08573604]
[1750719669033,49.82,144.88,144.78,8.53369937]
[1750719669235,9.73203667,144.85,144.76,8.53369937]
[1750719669434,6.9002,144.82,144.78,6.9017]
[1750719669640,6.893,144.87,144.76,8.53369937]
[1750719669840,6.9008,144.81,144.77,6.902]
[1750719670043,9.73203667,144.85,144.75,8.53369937]
[1750719670235,9.73203667,144.85,144.76,8.53369937]
[1750719670433,6.9003,144.82,144.78,6.9017]
[1750719670650,9.73203667,144.85,144.76,8.53369937]
[1750719670830,2.2469,144.84,144.74,20.45413604]
[1750719671036,6.9016,144.79,144.75,6.9031]
[1750719671530,6.9016,144.79,144.76,6.9028]
[1750719671738,6.9018,144.78,144.74,20.45413604]
[1750719671936,66.44503667,144.83,144.74,2.1884]
[1750719672136,9.73203667,144.81,144.74,9.092]
[1750719672334,9.73203667,144.81,144.74,2.1884]
[1750719672832,9.73203667,144.81,144.73,52.0125]
[1750719673043,9.73203667,144.79,144.71,8.53369937]
[1750719673236,9.73203667,144.79,144.71,6.905]
[1750719673436,9.73203667,144.79,144.7,8.53369937]
[1750719673736,9.73203667,144.77,144.68,4.5258]
[1750719674042,9.73203667,144.77,144.68,13.05949937]
[1750719674043,6.904,144.74,144.68,13.05949937]
[1750719674236,6.904,144.74,144.7,6.9054]
[1750719674433,6.9041,144.74,144.68,13.05949937]
[1750719674834,49.82,144.76,144.68,4.5258]
[1750719675032,6.9043,144.73,144.68,4.5258]
[1750719675235,49.82,144.76,144.68,11.4322]
[1750719675438,49.82,144.76,144.68,4.5258]
[1750719675439,52.1523,144.76,144.68,4.5258]
[1750719676229,6.9039,144.74,144.68,4.5258]
[1750719676845,6.9043,144.73,144.68,4.5258]
[1750719677038,52.1523,144.76,144.68,4.5258]
[1750719677039,52.1523,144.76,144.68,11.4323]
[1750719678046,6.905,144.72,144.68,11.4323]
[1750719678841,6.9052,144.71,144.68,11.4323]
[1750719679038,6.9052,144.71,144.68,9.1256]
[1750719679250,56.8374,144.76,144.68,9.1256]
[1750719679450,6.905,144.72,144.68,9.1256]
[1750719679744,9.73203667,144.75,144.66,206.64]
[1750719680241,6.9056,144.71,144.67,6.9068]
[1750719680446,9.73203667,144.75,144.67,6.9068]
[1750719680649,6.9055,144.71,144.67,6.9068]
[1750719681046,56.8374,144.76,144.69,6.9061]
[1750719681248,6.9048,144.72,144.66,206.64]
[1750719681546,66.56943667,144.76,144.66,206.64]
[1750719681745,9.73203667,144.74,144.65,8.53369937]
[1750719681947,9.73203667,144.74,144.64,8.53369937]
[1750719682143,6.9069,144.68,144.64,15.44189937]
[1750719682358,56.8374,144.76,144.63,165.33369937]
[1750719682550,9.73203667,144.74,144.63,175.06573604]
[1750719683350,6.9049,144.72,144.68,6.9063]
[1750719683647,66.56943667,144.76,144.65,18.26573604]
[1750719683856,596.3,144.8,144.69,9.73203667]
[1750719684047,55.8216,144.81,144.71,9.73203667]
[1750719684255,6.9012,144.8,144.76,6.9027]
[1750719684647,6.9012,144.8,144.72,48.8]
[1750719684955,51.1348,144.81,144.74,6.9035]
[1750719684956,6.9014,144.79,144.74,6.9035]
[1750719685156,51.1348,144.81,144.71,8.53369937]
[1750719685454,51.1348,144.81,144.7,218.75509937]
[1750719685846,6.9022,144.78,144.73,6.9041]
[1750719686045,9.73203667,144.78,144.7,8.53369937]
[1750719686249,6.9041,144.74,144.69,20.00029937]
[1750719686549,60.86683667,144.81,144.7,9.73203667]
[1750719686751,6.9026,144.77,144.72,6.9046]
[1750719686949,60.86683667,144.81,144.7,18.26573604]
[1750719687247,60.86683667,144.81,144.69,11.4663]
[1750719687248,6.904,144.74,144.69,11.4663]
[1750719687453,9.73203667,144.77,144.69,4.5606]
[1750719687846,9.73203667,144.77,144.68,8.53369937]
[1750719688047,48.8,144.76,144.67,8.53369937]
[1750719688447,6.9046,144.73,144.67,8.53369937]
[1750719688660,48.8,144.76,144.68,8.53369937]
[1750719688954,6.904,144.74,144.7,6.9053]
[1750719689154,48.8,144.76,144.67,165.27369937]
[1750719689357,58.53203667,144.76,144.67,165.27369937]
[1750719689565,6.9046,144.73,144.68,6.9063]
[1750719689744,48.8,144.76,144.67,8.53369937]
[1750719689950,9.73203667,144.75,144.66,8.53369937]
[1750719690151,48.8,144.76,144.67,8.53369937]
[1750719690356,48.8,144.76,144.68,8.53369937]
[1750719690553,48.8,144.76,144.69,48.8]
[1750719690857,55.7032,144.76,144.71,6.9051]
[1750719691055,55.7032,144.76,144.69,61.75539937]
[1750719691254,48.8,144.76,144.69,61.75539937]
[1750719691452,55.7031,144.76,144.71,6.9051]
[1750719691650,48.8,144.8,144.71,9.73203667]
[1750719691852,6.9026,144.77,144.73,6.9039]
[1750719692050,48.8,144.8,144.72,156.7]
[1750719692455,48.8,144.8,144.72,165.23369937]
[1750719692660,2.3348,144.81,144.73,18.26573604]
[1750719693160,2.3348,144.81,144.73,9.73203667]
[1750719693358,2.3348,144.81,144.73,18.26573604]
[1750719693660,6.9031,144.76,144.72,163.6045]
[1750719694260,48.8,144.79,144.72,156.7]
[1750719694459,58.53203667,144.79,144.72,156.7]
[1750719694856,6.9024,144.77,144.72,156.7]
[1750719695460,48.8,144.79,144.72,156.7]
[1750719696052,58.53203667,144.79,144.72,6.9043]
[1750719696253,58.53203667,144.79,144.7,8.53369937]
[1750719696450,58.53203667,144.79,144.69,12.95539937]
[1750719696651,58.53203667,144.79,144.71,6.905]
[1750719696851,58.53203667,144.79,144.7,8.53369937]
[1750719697056,58.53203667,144.79,144.71,6.905]
[1750719697258,58.53203667,144.79,144.69,8.53369937]
[1750719697854,6.9028,144.76,144.71,6.905]
[1750719698054,58.53203667,144.79,144.69,13.11059937]
[1750719698254,48.8,144.79,144.72,9.73203667]
[1750719698556,48.8,144.83,144.73,8.53369937]
[1750719699060,48.8,144.83,144.74,174.86573604]
[1750719699253,48.8,144.83,144.76,9.73203667]
[1750719699453,51.1129,144.86,144.76,9.73203667]
[1750719699654,51.1129,144.86,144.77,4.5769]
[1750719700258,51.1129,144.86,144.78,6.9015]
[1750719700462,51.1129,144.86,144.77,4.5769]
[1750719701054,51.1129,144.86,144.77,11.4789]
[1750719701459,51.1129,144.86,144.77,6.902]
[1750719701664,9.73100012,144.79,144.73,8.53369937]
[1750719701864,9.73100012,144.79,144.72,8.53369937]
[1750719702066,9.73100012,144.79,144.71,57.33369937]
[1750719702361,2.3912,144.78,144.69,8.53369937]
[1750719702552,2.3912,144.78,144.68,2.3724]
[1750719702553,6.9041,144.74,144.7,6.9055]
[1750719702753,2.3912,144.78,144.68,10.90609937]
[1750719703160,2.3912,144.78,144.69,6.9057]
[1750719703362,9.73100012,144.77,144.68,10.90609937]
[1750719703868,9.73100012,144.77,144.7,6.9056]
[1750719705258,9.73100012,144.77,144.71,6.9049]
[1750719705757,9.73100012,144.77,144.68,10.90609937]
[1750719705758,6.9041,144.74,144.68,10.90609937]
[1750719705961,9.73100012,144.77,144.7,6.9055]
[1750719706270,6.9045,144.73,144.68,10.90609937]
[1750719707165,6.9045,144.73,144.69,6.906]
[1750719707366,6.9045,144.73,144.68,10.90609937]
[1750719708059,6.9045,144.73,144.69,6.9058]
[1750719708457,12.12220012,144.78,144.69,8.53369937]
[1750719709168,12.12220012,144.78,144.68,10.90609937]
[1750719709367,2.3912,144.78,144.68,8.53369937]
[1750719709565,48.8,144.8,144.72,8.53369937]
[1750719709766,48.8,144.8,144.73,8.53369937]
[1750719710270,48.8,144.8,144.73,14.82520048]
[1750719710467,55.701,144.8,144.76,6.9023]
[1750719710769,54.81150111,144.84,144.75,14.82520048]
[1750719710960,2.4133,144.86,144.8,6.9005]
[1750719711354,2.4133,144.86,144.79,14.82520048]
[1750719711557,48.52,144.87,144.79,14.82520048]
[1750719711970,48.52,144.87,144.8,8.53369937]
[1750719712562,48.52,144.87,144.83,6.8991]
[1750719713172,6.8974,144.88,144.83,6.8991]
[1750719713371,48.52,144.91,144.82,8.53369937]
[1750719713566,48.52,144.91,144.82,10.74369937]
[1750719713769,6.8967,144.89,144.82,10.74369937]
[1750719713964,48.52,144.91,144.82,10.74369937]
[1750719714376,6.8977,144.87,144.82,10.74369937]
[1750719714565,48.52,144.91,144.82,2.21]
[1750719715064,48.52,144.91,144.82,10.74369937]
[1750719715364,48.52,144.91,144.82,2.21]
[1750719715767,6.8979,144.87,144.82,2.21]
[1750719716066,48.52,144.91,144.82,2.21]
[1750719716269,48.52,144.91,144.83,9.72689192]
[1750719716469,2.3612,144.94,144.87,9.72689192]
[1750719716666,6.8945,144.94,144.89,6.8964]
[1750719716869,48.5,144.95,144.87,9.72689192]
[1750719717677,48.5,144.95,144.86,58.22689192]
[1750719717875,6.8966,144.89,144.86,48.5]
[1750719718562,12.10369192,144.94,144.84,156.22]
[1750719718774,9.72689192,144.92,144.84,156.22]
[1750719719272,48.5,144.95,144.84,156.22]
[1750719719476,48.5,144.95,144.87,6.8975]
[1750719719982,48.5,144.95,144.87,9.72689192]
[1750719720273,48.5,144.95,144.87,58.22689192]
[1750719721678,6.8944,144.94,144.89,6.8962]
[1750719721879,48.5,144.95,144.87,58.22689192]
[1750719722475,48.5,144.95,144.87,48.5]
[1750719722677,6.8958,144.91,144.87,55.3975]
[1750719722981,58.22689192,144.95,144.87,48.5]
[1750719724071,9.72689192,144.91,144.83,2.2965]
[1750719724576,48.48,144.9,144.83,2.2965]
[1750719724877,48.48,144.9,144.82,2.21]
[1750719725078,2.3713,144.89,144.82,2.21]
[1750719725383,12.09819192,144.89,144.78,167.99989192]
[1750719726081,6.8993,144.84,144.8,6.9005]
[1750719726270,6.8993,144.84,144.78,167.99989192]
[1750719726467,12.09819192,144.89,144.78,167.99989192]
[1750719727080,2.3713,144.89,144.78,158.273]
[1750719727284,12.09819192,144.89,144.78,167.99989192]
[1750719727482,2.3713,144.89,144.78,167.99989192]
[1750719728168,6.8998,144.83,144.79,6.9012]
[1750719728580,9.72689192,144.88,144.79,6.9012]
[1750719728784,6.8996,144.83,144.79,6.9012]
[1750719729385,9.72689192,144.86,144.78,158.273]
[1750719729574,9.72689192,144.86,144.78,155.96]
[1750719729776,6.9002,144.82,144.78,6.9015]
[1750719730273,2.3713,144.89,144.77,60.50319192]
[1750719730274,9.72689192,144.88,144.77,60.50319192]
[1750719730481,9.72689192,144.88,144.79,6.901]
[1750719730881,6.8988,144.85,144.77,60.50319192]
[1750719731185,9.72689192,144.88,144.77,60.50319192]
[1750719731688,6.8999,144.83,144.79,6.9012]
[1750719732184,9.72689192,144.88,144.79,6.9012]
[1750719732185,6.8991,144.84,144.79,6.9012]
[1750719732383,9.72689192,144.88,144.77,60.50319192]
[1750719732583,9.72689192,144.85,144.77,48.48]
[1750719732777,6.9007,144.81,144.77,48.48]
[1750719733090,58.20689192,144.85,144.77,48.48]
[1750719733282,6.9013,144.8,144.77,48.48]
[1750719733785,48.48,144.85,144.77,48.48]
[1750719733985,58.20689192,144.85,144.77,48.48]
[1750719734190,48.48,144.85,144.77,48.48]
[1750719734487,48.48,144.85,144.77,55.3819]
[1750719734686,48.48,144.85,144.77,48.48]
[1750719734887,6.9003,144.82,144.77,48.48]
[1750719735184,48.48,144.85,144.78,6.28724496]
[1750719735585,48.48,144.85,144.79,6.901]
[1750719735586,6.8996,144.83,144.79,6.901]
[1750719736086,6.8998,144.83,144.78,6.9015]
[1750719736385,48.48,144.85,144.78,6.9015]
[1750719736785,6.8998,144.83,144.78,6.9015]
[1750719736989,6.8998,144.83,144.79,6.9013]
[1750719737287,6.8998,144.83,144.77,54.76724496]
[1750719737288,48.48,144.85,144.77,54.76724496]
[1750719737484,6.8996,144.83,144.77,54.76724496]
[1750719737685,48.48,144.85,144.77,54.76724496]
[1750719738179,6.28724496,144.84,144.77,48.48]
[1750719739285,6.28724496,144.84,144.78,6.9015]
[1750719739488,48.48,144.85,144.77,54.76724496]
[1750719739687,6.9009,144.81,144.77,61.66924496]
[1750719739886,6.9009,144.81,144.77,55.382]
[1750719740974,48.48,144.85,144.76,4.6972]
[1750719741189,6.28724496,144.81,144.72,48.06]
[1750719741575,6.9027,144.77,144.72,48.06]
[1750719742082,48.06,144.8,144.72,48.06]
[1750719742590,48.06,144.8,144.73,6.28724496]
[1750719742785,48.06,144.8,144.75,6.28724496]
[1750719743287,48.06,144.84,144.75,6.28724496]
[1750719743683,6.9002,144.82,144.75,6.28724496]
[1750719743887,48.06,144.84,144.75,6.28724496]
[1750719744082,6.9006,144.81,144.77,6.902]
[1750719744397,48.06,144.84,144.75,6.28724496]
[1750719744784,6.9007,144.81,144.77,6.9022]
[1750719745476,48.06,144.84,144.75,6.28724496]
[1750719745784,6.28724496,144.83,144.75,6.28724496]
[1750719745990,6.28724496,144.83,144.77,6.9022]
[1750719746585,6.9008,144.81,144.77,6.9022]
[1750719746784,6.28724496,144.83,144.76,6.9026]
[1750719747291,6.28724496,144.83,144.75,6.28724496]
[1750719747790,6.28724496,144.83,144.76,6.9025]
[1750719748491,6.9008,144.81,144.77,6.9022]
[1750719748983,6.9009,144.8,144.76,6.9027]
[1750719749287,6.290172,144.83,144.74,6.290172]
[1750719749483,6.290172,144.83,144.76,6.9027]
[1750719749893,6.290172,144.83,144.74,6.290172]
[1750719750695,6.290172,144.83,144.77,6.9022]
[1750719751290,6.9011,144.8,144.77,6.9022]
[1750719751688,6.290172,144.83,144.74,8.51143762]
[1750719751893,6.290172,144.83,144.74,14.80160962]
[1750719752089,48.06,144.84,144.74,14.80160962]
[1750719752295,6.9008,144.81,144.74,14.80160962]
[1750719752688,54.350172,144.84,144.76,6.9024]
[1750719752886,6.901,144.8,144.74,14.80160962]
[1750719753090,48.06,144.84,144.78,6.9016]
[1750719753389,48.06,144.84,144.75,14.80098089]
[1750719753591,54.34954327,144.84,144.75,14.80098089]
[1750719753789,54.34954327,144.84,144.77,6.902]
[1750719753983,6.9,144.82,144.77,6.902]
[1750719754182,6.9,144.82,144.75,14.80098089]
[1750719754383,6.9,144.82,144.77,6.9023]
[1750719754794,6.9005,144.81,144.77,6.9023]
[1750719754997,6.28954327,144.8,144.75,8.51143762]
[1750719755198,6.28954327,144.78,144.71,8.51143762]
[1750719755398,48.08,144.77,144.7,13.24073762]
[1750719755898,48.08,144.77,144.7,4.7293]
[1750719756501,6.9045,144.73,144.7,4.7293]
[1750719756699,6.28954327,144.76,144.7,4.7293]
[1750719756901,6.28954327,144.76,144.7,2.3677]
[1750719757103,6.9046,144.73,144.7,9.2733]
[1750719757403,6.28954327,144.76,144.7,2.3677]
[1750719757700,6.9046,144.73,144.7,2.3677]
[1750719757905,6.28954327,144.74,144.67,56.59143762]
[1750719758089,6.28954327,144.74,144.67,48.08]
[1750719758287,6.9052,144.71,144.68,6.9063]
[1750719759596,48.08,144.77,144.67,48.08]
[1750719759895,48.08,144.77,144.7,6.28954327]
[1750719760093,48.08,144.77,144.72,6.28954327]
[1750719760402,54.36954327,144.81,144.72,6.28954327]
[1750719760701,50.3326,144.82,144.74,6.28954327]
[1750719761497,8.54378425,144.82,144.73,6.29118425]
[1750719761698,6.29118425,144.8,144.72,48.08]
[1750719762091,6.29118425,144.8,144.71,175.32218425]
[1750719762495,6.9036,144.75,144.71,175.32218425]
[1750719762693,54.37118425,144.76,144.69,8.51143762]
[1750719762898,54.37118425,144.76,144.68,56.59143762]
[1750719763197,6.29118425,144.74,144.68,48.08]
[1750719763399,6.29118425,144.74,144.67,6.29118425]
[1750719763591,6.29118425,144.74,144.66,8.51143762]
[1750719764002,6.9055,144.71,144.66,8.51143762]
[1750719764400,6.29118425,144.74,144.67,8.51143762]
[1750719764707,6.9047,144.72,144.68,6.9063]
[1750719764904,48.08,144.71,144.67,8.51143762]
[1750719765102,54.9853,144.71,144.66,6.9072]
[1750719765307,6.29995394,144.72,144.65,4.6238]
[1750719765805,6.9059,144.7,144.66,6.9075]
[1750719766006,48.08,144.73,144.65,4.6238]
[1750719766204,48.08,144.73,144.65,19.43519156]
[1750719766505,48.08,144.73,144.65,10.92375394]
[1750719766909,48.08,144.73,144.65,19.43519156]
[1750719767096,48.08,144.73,144.65,13.13523762]
[1750719767297,48.08,144.73,144.65,4.6238]
[1750719767804,6.9057,144.7,144.65,13.13523762]
[1750719768006,6.29995394,144.72,144.65,13.13523762]
[1750719768204,6.9056,144.71,144.67,6.907]
[1750719768403,6.29995394,144.72,144.65,13.13523762]
[1750719768903,6.9064,144.69,144.65,20.04303762]
[1750719769107,6.29995394,144.72,144.65,13.13523762]
[1750719769594,6.9069,144.68,144.65,13.13523762]
[1750719769797,6.29995394,144.72,144.65,13.13523762]
[1750719770406,6.29995394,144.72,144.65,20.04303762]
[1750719770996,6.29995394,144.7,144.64,8.51143762]
[1750719771307,6.29995394,144.7,144.63,8.51143762]
[1750719771495,6.9074,144.67,144.63,15.42023762]
[1750719771698,6.29995394,144.7,144.63,6.9088]
[1750719772108,6.9074,144.67,144.63,6.9088]
[1750719772907,6.9076,144.66,144.63,6.9088]
[1750719773103,6.29995394,144.7,144.63,6.9088]
[1750719773510,6.9074,144.67,144.63,6.9088]
[1750719773707,6.29995394,144.7,144.62,9.2275]
[1750719774100,6.9078,144.66,144.62,9.2275]
[1750719774418,6.29995394,144.66,144.61,4.6367]
[1750719774605,6.9081,144.65,144.61,4.6367]
[1750719774807,2.4236,144.71,144.61,10.93665394]
[1750719775013,6.29995394,144.71,144.62,2.4055]
[1750719775205,50.0127,144.72,144.62,9.3148]
[1750719775206,6.29995394,144.69,144.62,9.3148]
[1750719775607,6.29995394,144.69,144.62,2.4055]
[1750719775812,56.31265394,144.72,144.61,11.5464]
[1750719775813,6.29995394,144.67,144.61,11.5464]
[1750719776011,6.29995394,144.67,144.61,4.6367]
[1750719776312,6.908,144.66,144.62,6.9091]
[1750719776509,6.29995394,144.67,144.62,6.9091]
[1750719776700,6.29995394,144.67,144.6,47.62]
[1750719776902,6.29995394,144.63,144.57,8.51143762]
[1750719777204,6.29995394,144.63,144.56,4.468]
[1750719777403,6.91,144.61,144.58,6.9113]
[1750719777605,6.29995394,144.63,144.56,4.468]
[1750719777808,6.9103,144.61,144.57,6.9115]
[1750719778006,6.29995394,144.63,144.57,6.9115]